{"text_format":"1","workbook":"xlsx","n_sheets":10,"sheets":["Gestion Bénévoles","Tableau de bord","Source","Liste"," BénéactifesJeudiApm"," Bénéactifes Jeudi soir","Bénéactifsfriperie","Archives 2016","Archives 2017","Feuil5"],"not_rendered":{"charts":0,"images":4,"macros":1,"external_links":0,"defined_names":41,"comments":0,"pivot_tables":0},"unopened":[],"bounds":{"document_bytes":16777216,"sheet_cells":100000,"rows_first":2000,"rows_last":500,"rows_between":2000,"halvings":0,"cell_chars":16384,"cell_head_chars":4096},"cells_cut":0,"cells_raw":0,"read":"whole","date_system":"1900"}

{"sheet":"Gestion Bénévoles","index":0,"n_rows":13,"n_cols":6,"rows_kept":13,"cut":false,"hidden":false,"merged":[[12,5,12,6]]}
[]
[]
[]
[]
[]
[]
[]
[]
[]
[]
[]
[]
[null,null,null,null,null,"Cliquer 2 fois"]

{"sheet":"Tableau de bord","index":1,"n_rows":27,"n_cols":5,"rows_kept":27,"cut":false,"hidden":false,"merged":[[13,4,14,5],[20,4,21,5],[26,4,27,5],[18,1,19,1]]}
[]
[]
[]
[]
[]
[]
[]
[]
[]
[]
[]
[]
[]
[null,null,null,null,{"$f":"COUNTIFS(' BénéactifesJeudiApm'!Totaljapm,\"oui\")","v":0}]
[]
[]
[]
[]
[null,{"$f":"TRANSPOSE(Source!A1000)","v":20}]
[]
[null,null,null,null,{"$f":"COUNTIFS(' Bénéactifes Jeudi soir'!H30,\"oui\")","v":0}]
[]
[]
[]
[]
[]
[null,null,null,null,{"$f":"COUNTIFS(' BénéactifesJeudiApm'!Totaljapm,\"oui\")","v":0}]

{"sheet":"Source","index":2,"n_rows":1000,"n_cols":25,"rows_kept":1000,"cut":false,"hidden":false,"merged":[]}
["No","Nom","Prénom","No de rue","Adresse","Appart","Ville","Code Postal","Province","Téléphone","Celullaire","Travail","Courriel","Sexe","Status","Langues Parlées","Date De Naissance","Permis de conduire","Référé par","Motivation","Expérience","Disponibilités","Assignation","Date d'entrée","Date de Sortie "]
[1,"Aitbenomar","Karima",361," Rue de Verchères",null,"Greenfield Park","J4V 2B7","QC","450-648-0100","514-757-0100",null,"karima-ca@hotmail.com",null,null,"arabe, français","1984-09-19",null,null,null,null,"jeudi soir"]
[2,"Pepe","Josée",null,"","","","","QC","","514-437-1192","","ssmily32@hotmail.com","Féminin","Bénévoles","Français - Anglais","",null,"","","","jeudi soir","Distribution Jeudi"]
[3,"Emiliani","Mauricio",2191,"Rue Cervais","","Lasalle","H8N 1J9","QC","","514-358-3560 ","","mauricio-emiliani@msn.com","Masculin","Bénévoles","Français - Arabe","",null,"","","","jeudi soir","Distribution Jeudi"]
[4,"Mohmmd ","Boumati",110,"Rue Marie-Peladeau","","La Prairie","J5R 5Y3","QC","","514-887-5355","","mboumati55@gmail.com","Masculin","Bénévoles","Français - Arabe","",null,"","","","jeudi soir","Distribution Jeudi"]
[5,"Métillus","Myriam",null,"Rue Cornwall","","St-Hubert","J3Y 2B5","QC","450-321-2424","","","myriamsucre@hotmail.com","Féminin","Bénévoles","Français","",null,"","","","jeudi soir","Distribution Jeudi"]
[6,"Azghari","Nasia",5520,"Vauclin","","Brossard","J4W 1P8","QC","","514-589-2864","","nino.salaho@live.ca","Féminin","Bénévoles","Français - Arabe","",null,"","","","jeudi soir","Distribution Jeudi"]
[7,"Zahra","Zakhnini",85,"Avenue Fouquet","","Candiac","J5R 0E4","QC","","514-996-8012","","z.zara@hotmail.ca","Féminin","Bénévoles","Français - Arabe","",null,"","","","jeudi soir","Distribution Jeudi"]
[8,"Miloudi","Djamal",null,"Boulevard Milan","","Brossard","","QC","","514-691-4466","","djamalmilou@hotmail.fr","Masculin","Bénévoles","Français - Arabe","",null,"","","","jeudi soir","Distribution Jeudi","",""]
[9,"Guermache","Masiera",null,"Marie Peladeau","","La Prairie","","Qc","450--6771619","","","mguermache@rsb.qc.ca","Féminin","Bénévoles","Français - Arabe","",null,"","","","jeudi soir","Distribution Jeudi","",""]
[10,"Aubry","Linda",null,"Boulevard St Laurent","","St. Catherine","J5C 2A9","QC","450-632-8692","","","lindaaubry@hotmail.fr","","Bénévoles","Français - Anglais","",null,"","","","jeudi soir","Distribution Jeudi","",""]
[11,"Chouinard","Rita",null,"Rue Donck","","Laval","H7W 4E7","QC","+1450-667-0063","","","rita.chouinard@sympatico.ca","Féminin","Bénévoles","Français - Anglais","",null,"","","","jeudi soir","Friperie","",""]
[12,"Dumoulin","Lise",1350,"Rue Palerme",608,"Brossard","J4W 0A1","QC","450-678-6208","","","","Féminin","Bénévoles","Français","",null,"","","","lundi-mardi-mercredi.","Triage semaine","",""]
[13,"Berman","Nathalie",null,"Rue Corneille","1","Brossard","J4Z 0K6","QC","819-578-8059","","","kanel04@hotmail.com","Féminin","Bénévoles occasionnels","Français","1956-03-09",null,"","","","Lundi - Mardi -mercredi 10h-14h","Triage semaine","",""]
[14,"Wilson","Brenda",null,"Loisette","","St.-Hubert","J3Y 7T4","QC","450-926-2992","","","patriotic101@hotmail.com","Féminin","Bénévoles occasionnels","Français - Anglais","",null,"","","","Mercredi 8h-16h","Assignation","",""]
[15,"Vallée","Gerry (Gérard)",null,"Rue Waterman","","St.-Lambert","J4P 1R7","QC","","514-448-6696","","truckerus73@gmail.com","Masculin","Bénévoles","Français - Anglais","",null,"","","","Lundi au vendredi en journée/disponible sur demande","Chauffeur","",""]
[16,"Moniz","Maria",null,"Rue Boileau","","Brossard","","QC","450-812-4636","","","","Féminin","Bénévoles","Français-Angl-Potugais","",null,"","","","lundi-mardi-mercredi.","Triage semaine","",""]
[17,"Nguyen","Lien",null,"Avenue Sorbone","","Brossard","J4X 1N3","QC","450-466-4287","","","lisorbone@gmail.com","Féminin","Bénévoles","Français - Anglais","",null,"","","","Jeudi Après-midi","Distribution Jeudi","",""]
[18,"Giannikakis","Katia",null,"Rue Nadeau","","Brossard","J4Y 1X8","QC","","514-574-3397","","kgiannikakis@videotron.ca","Féminin","Bénévoles","Français - Anglais","",null,"","","","Jeudi Après-midi","Distribution Jeudi","",""]
[19,"Michaud","Raoul",null,"Montée St.Hubert","","St.-Hubert","J3Y 4J4","QC","450-676-7400","","","","Masculin","Bénévoles occasionnels","Français - Anglais","",null,"","","","jeudi(1/2) de 13h-17h","Distribution Jeudi","",""]
[20,"Lamaire","Louise",null,"Rue Bretagne","","Brossard","J4Z 1X7","QC","450-678-2827","","","llamaire@yahoo.ca","Féminin","Bénévoles","Français - Anglais","",null,"","","","Jeudi Après-midi","Distribution Jeudi","",""]
[]
[]
[]
[]
[]
[]
[]
[]
[]
[]
[]
[]
[]
[]
[]
[]
[]
[]
[]
[]
[]
[]
[]
[]
[]
[]
[]
[]
[]
[]
[]
[]
[]
[]
[]
[]
[]
[]
[]
[]
[]
[]
[]
[]
[]
[]
[]
[]
[]
[]
[]
[]
[]
[]
[]
[]
[]
[]
[]
[]
[]
[]
[]
[]
[]
[]
[]
[]
[]
[]
[]
[]
[]
[]
[]
[]
[]
[]
[]
[]
[]
[]
[]
[]
[]
[]
[]
[]
[]
[]
[]
[]
[]
[]
[]
[]
[]
[]
[]
[]
[]
[]
[]
[]
[]
[]
[]
[]
[]
[]
[]
[]
[]
[]
[]
[]
[]
[]
[]
[]
[]
[]
[]
[]
[]
[]
[]
[]
[]
[]
[]
[]
[]
[]
[]
[]
[]
[]
[]
[]
[]
[]
[]
[]
[]
[]
[]
[]
[]
[]
[]
[]
[]
[]
[]
[]
[]
[]
[]
[]
[]
[]
[]
[]
[]
[]
[]
[]
[]
[]
[]
[]
[]
[]
[]
[]
[]
[]
[]
[]
[]
[]
[]
[]
[]
[]
[]
[]
[]
[]
[]
[]
[]
[]
[]
[]
[]
[]
[]
[]
[]
[]
[]
[]
[]
[]
[]
[]
[]
[]
[]
[]
[]
[]
[]
[]
[]
[]
[]
[]
[]
[]
[]
[]
[]
[]
[]
[]
[]
[]
[]
[]
[]
[]
[]
[]
[]
[]
[]
[]
[]
[]
[]
[]
[]
[]
[]
[]
[]
[]
[]
[]
[]
[]
[]
[]
[]
[]
[]
[]
[]
[]
[]
[]
[]
[]
[]
[]
[]
[]
[]
[]
[]
[]
[]
[]
[]
[]
[]
[]
[]
[]
[]
[]
[]
[]
[]
[]
[]
[]
[]
[]
[]
[]
[]
[]
[]
[]
[]
[]
[]
[]
[]
[]
[]
[]
[]
[]
[]
[]
[]
[]
[]
[]
[]
[]
[]
[]
[]
[]
[]
[]
[]
[]
[]
[]
[]
[]
[]
[]
[]
[]
[]
[]
[]
[]
[]
[]
[]
[]
[]
[]
[]
[]
[]
[]
[]
[]
[]
[]
[]
[]
[]
[]
[]
[]
[]
[]
[]
[]
[]
[]
[]
[]
[]
[]
[]
[]
[]
[]
[]
[]
[]
[]
[]
[]
[]
[]
[]
[]
[]
[]
[]
[]
[]
[]
[]
[]
[]
[]
[]
[]
[]
[]
[]
[]
[]
[]
[]
[]
[]
[]
[]
[]
[]
[]
[]
[]
[]
[]
[]
[]
[]
[]
[]
[]
[]
[]
[]
[]
[]
[]
[]
[]
[]
[]
[]
[]
[]
[]
[]
[]
[]
[]
[]
[]
[]
[]
[]
[]
[]
[]
[]
[]
[]
[]
[]
[]
[]
[]
[]
[]
[]
[]
[]
[]
[]
[]
[]
[]
[]
[]
[]
[]
[]
[]
[]
[]
[]
[]
[]
[]
[]
[]
[]
[]
[]
[]
[]
[]
[]
[]
[]
[]
[]
[]
[]
[]
[]
[]
[]
[]
[]
[]
[]
[]
[]
[]
[]
[]
[]
[]
[]
[]
[]
[]
[]
[]
[]
[]
[]
[]
[]
[]
[]
[]
[]
[]
[]
[]
[]
[]
[]
[]
[]
[]
[]
[]
[]
[]
[]
[]
[]
[]
[]
[]
[]
[]
[]
[]
[]
[]
[]
[]
[]
[]
[]
[]
[]
[]
[]
[]
[]
[]
[]
[]
[]
[]
[]
[]
[]
[]
[]
[]
[]
[]
[]
[]
[]
[]
[]
[]
[]
[]
[]
[]
[]
[]
[]
[]
[]
[]
[]
[]
[]
[]
[]
[]
[]
[]
[]
[]
[]
[]
[]
[]
[]
[]
[]
[]
[]
[]
[]
[]
[]
[]
[]
[]
[]
[]
[]
[]
[]
[]
[]
[]
[]
[]
[]
[]
[]
[]
[]
[]
[]
[]
[]
[]
[]
[]
[]
[]
[]
[]
[]
[]
[]
[]
[]
[]
[]
[]
[]
[]
[]
[]
[]
[]
[]
[]
[]
[]
[]
[]
[]
[]
[]
[]
[]
[]
[]
[]
[]
[]
[]
[]
[]
[]
[]
[]
[]
[]
[]
[]
[]
[]
[]
[]
[]
[]
[]
[]
[]
[]
[]
[]
[]
[]
[]
[]
[]
[]
[]
[]
[]
[]
[]
[]
[]
[]
[]
[]
[]
[]
[]
[]
[]
[]
[]
[]
[]
[]
[]
[]
[]
[]
[]
[]
[]
[]
[]
[]
[]
[]
[]
[]
[]
[]
[]
[]
[]
[]
[]
[]
[]
[]
[]
[]
[]
[]
[]
[]
[]
[]
[]
[]
[]
[]
[]
[]
[]
[]
[]
[]
[]
[]
[]
[]
[]
[]
[]
[]
[]
[]
[]
[]
[]
[]
[]
[]
[]
[]
[]
[]
[]
[]
[]
[]
[]
[]
[]
[]
[]
[]
[]
[]
[]
[]
[]
[]
[]
[]
[]
[]
[]
[]
[]
[]
[]
[]
[]
[]
[]
[]
[]
[]
[]
[]
[]
[]
[]
[]
[]
[]
[]
[]
[]
[]
[]
[]
[]
[]
[]
[]
[]
[]
[]
[]
[]
[]
[]
[]
[]
[]
[]
[]
[]
[]
[]
[]
[]
[]
[]
[]
[]
[]
[]
[]
[]
[]
[]
[]
[]
[]
[]
[]
[]
[]
[]
[]
[]
[]
[]
[]
[]
[]
[]
[]
[]
[]
[]
[]
[]
[]
[]
[]
[]
[]
[]
[]
[]
[]
[]
[]
[]
[]
[]
[]
[]
[]
[]
[]
[]
[]
[]
[]
[]
[]
[]
[]
[]
[]
[]
[]
[]
[]
[]
[]
[]
[]
[]
[]
[]
[]
[]
[]
[]
[]
[]
[]
[]
[]
[]
[]
[]
[]
[]
[]
[]
[]
[]
[]
[]
[]
[]
[]
[]
[]
[]
[]
[]
[]
[]
[]
[]
[]
[]
[]
[]
[]
[]
[]
[]
[]
[]
[]
[]
[]
[]
[]
[]
[]
[]
[]
[]
[]
[]
[]
[]
[]
[]
[]
[]
[]
[]
[]
[]
[]
[{"$f":"COUNT(A2:A999)","v":20}]

{"sheet":"Liste","index":3,"n_rows":82,"n_cols":8,"rows_kept":82,"cut":false,"hidden":false,"merged":[]}
[null,null,"Disponibilités",null,"Total Bénévoles","Total travailleurs sociaux",null,"Paniers 5.00 $"]
[null,null,"jeudi soir",null,null,null,null,"Oui"]
[null,null,"Jeudi Après-midi",null,null,null,null,"Non"]
[null,null,"lundi-mardi-mercredi.",null,null,null,null,"5.00"]
[null,null,"lundi à jeudi en journée"]
[null,null,"mercredi et jeudi toute la journée"]
[null,null,"mardi 11h-16h"]
[null,null,"Mercredi 8h-16h"]
[null,null,"samedi-dimanche/matin-AM et PM, régulièrement ou sporadiquement"]
[null,null,"Lundi au jeudi journée complète"]
[null,null,"Lundi au vendredi en journée/disponible sur demande",null,"Sexe","Status",null,"Présence"]
[null,null,"lundi matin",null,"Masculin","Bénévoles",null,"Oui"]
[null,null,"Lundi-journée complète",null,"Féminin","Travailleurs sociaux",null,"Non"]
[null,null,"jeudi après-midi; 1 semaine sur deux",null,null,"Bénévoles occasionnels",null,"Occationnelle"]
[null,null,"Tuesday an Thursday afternoon",null,null,null,null,"Paniers de noel"]
[null,null,"mardi et jeudi matin"]
[null,null,"Mardi matin"]
[null,null,"lundi, mardi, jeudi journée complète "]
[null,null,"mercredi 9h-14h"]
[null,null,"mercredi et jeudi matin"]
[null,null,"lundi et mercredi matin",null,"Langues","Permis de conduire"]
[null,null,"(limitation professionnelle, ancien bénévole)",null,"Français","Classe 3"]
[null,null,"Lundi au Jeudi demi-journée",null,"Français - Anglais","Classe 5"]
[null,null,"jeudi après midi",null,"Espagnol","autres"]
[null,null,"jeudi la journée",null,"Anglais - Espagnol"]
[null,null,"lundi au mercredi journée",null,"Italien"]
[null,null,"lundi au jeudi de 8h-15h30",null,"Français - Arabe"]
[null,null,"Lundi au jeudi journée complète",null,"Arabe - Anglais"]
[null,null,"jeudi 18h-21h",null,"Français-Angl-Potugais"]
[null,null,"lundi après midi",null,"Français-Portugais"]
[null,null,"au besoin"]
[null,null,"jeudi en soirée ou lundi"]
[null,null,"dépend de la semaine"]
[null,null,"lundi et mercredi après midi/mardi-journée complète",null,"Assignation"]
[null,null,"jeudi après-midi",null,"Chauffeur"]
[null,null,"mercredi",null,"Friperie"]
[null,null,"lundi journée",null,"Distribution Jeudi"]
[null,null,"3hrs/semaine",null,"Inv Viande Prép Tablett"]
[null,null,"jeudi de 18h à 21h",null,"Triage semaine"]
[null,null,"lundi au jeudi en matinée ",null,"Secrétariat"]
[null,null,"Lundi-jeudi matinée",null,"Aide charger véhicule"]
[null,null,"Jeudi 8h-16h",null,"Boucherie"]
[null,null,"Lundi et mercredi journée complète",null,"Pain"]
[null,null,"mercredi 9h-14h",null,"Resp. Travailleurs sc"]
[null,null,"mercredi 9h-14h (09 Sept.)",null,"Resp. Bénévoles"]
[null,null,"implication occasionnelle",null,"Resp. Cdm et livraisons"]
[null,null,"mardi, mercredi et jeudi",null,"Resp. Plancher"]
[null,null,"jeudi 10h-21h",null,"Resp. de réf. Bénévoles"]
[null,null,"jeudi soirée"]
[null,null,"lundi et jeudi en journée"]
[null,null,"jeudi"]
[null,null,"jeudi 18h-21h"]
[null,null,"Lundi, mercredi,jeudi journée complète/mardi matinée"]
[null,null,"Mercredi 8h-16h"]
[null,null,"Mardi et Mercredi matin"]
[null,null,"lundiau jeudi après midi"]
[null,null,"2jours/semaine"]
[null,null,"jeudi en soirée"]
[null,null,"lundi au jeudi en journée"]
[null,null,"lundi au jeudi en matinée"]
[null,null,"mercredi et jeudi"]
[null,null,"mardi après midi"]
[null,null,"lundi et jeudi toute la journée"]
[null,null,"jeudi en soirée"]
[null,null,"mardi après midi, jeudi en soirée"]
[null,null,"lundi, mercredi, jeudi après midi"]
[null,null,"lundi au vendredi/ section des viandes et pain"]
[null,null,"lundi-mercredi à jeudi;la journée"]
[null,null,"jeudi après midi"]
[null,null,"mercredi journée"]
[null,null,"jeudi soir ou sur appel"]
[null,null,"jeudi 18h-21h"]
[null,null,"jeudi en soirée"]
[null,null,"Jeudi-soirée"]
[null,null,"à discuter selon les besoins et les postes"]
[null,null,"jeudi(1/2) de 12h-16h"]
[null,null,"jeudi en soirée"]
[null,null,"jeudi après midi et soir"]
[null,null,"jeudi après-midi"]
[null,null,"mardi et mercredi journée"]
[null,null,"jeudi après-midi et soirée"]
[null,null,"jeudi"]

{"sheet":" BénéactifesJeudiApm","index":4,"n_rows":31,"n_cols":9,"rows_kept":31,"cut":false,"hidden":false,"merged":[[12,5,12,6],[13,5,13,6],[14,5,14,6],[15,5,15,6],[3,1,3,4],[8,5,8,6],[9,5,9,6],[10,5,10,6],[11,5,11,6],[1,3,1,5],[5,5,5,6],[6,5,6,6],[7,5,7,6],[4,5,4,6],[26,5,26,6],[21,5,21,6],[22,5,22,6],[23,5,23,6],[24,5,24,6],[25,5,25,6],[16,5,16,6],[17,5,17,6],[18,5,18,6],[19,5,19,6],[20,5,20,6]]}
[]
[null,null,null,"Bénévoles du Jeudi après midi"]
[null,null,null,null,null,null,"Jour","Mois","Année"]
[null,"Panier 5.oo pour moins de  4 hrs de travail",null,null,null,"Date : "]
["No","Nom","Prénom","Téléphone","Celullaire","Disponibilités",null,"Présence","Paniers"]
[]
[]
[]
[]
[]
[]
[]
[]
[]
[]
[]
[]
[]
[]
[]
[]
[]
[]
[]
[]
[]
[]
[]
[null,null,null,null,null,null,"Total",{"$f":"COUNTIF(H6:H26,\"oui\")","v":0}]
[]
[null,null,null,null,null,null,"Total",null,{"$f":"SUM(I6:I30)","v":0}]

{"sheet":" Bénéactifes Jeudi soir","index":5,"n_rows":32,"n_cols":9,"rows_kept":32,"cut":false,"hidden":false,"merged":[[1,3,1,5],[3,1,3,4]]}
[]
[null,null,null,"Bénévoles du Jeudi soir"]
[]
[null,"Panier 5.oo pour moins de  4 hrs de travail",null,null,null,"Date : ","Jour","Mois","Année"]
[]
["No","Nom","Prénom","Téléphone","Celullaire","Courriel","Assignation","Présence","Paniers"]
[]
[]
[]
[]
[]
[]
[]
[]
[]
[]
[]
[]
[]
[]
[]
[]
[]
[]
[]
[]
[]
[]
[]
[null,null,null,null,null,null,"Total",{"$f":"COUNTIF(H7:H27,\"oui\")","v":0}]
[]
[null,null,null,null,null,null,"Total",null,0]

{"sheet":"Bénéactifsfriperie","index":6,"n_rows":32,"n_cols":35,"rows_kept":32,"cut":false,"hidden":false,"merged":[[3,1,3,4],[3,6,3,8],[3,9,3,16],[3,17,3,24],[3,25,3,34],[0,9,0,10],[0,11,0,12],[1,3,1,5],[1,17,1,28],[2,17,2,24],[30,33,30,34],[4,9,4,16],[4,17,4,24],[4,25,4,34],[30,9,30,10],[30,11,30,12],[30,13,30,14],[30,15,30,16],[30,17,30,18],[30,19,30,20],[30,21,30,22],[30,23,30,24],[30,25,30,26],[30,27,30,28],[30,29,30,30],[30,31,30,32]]}
[]
[null,null,null,"Bénévoles du Jeudi soir",null,null,null,null,null,null,null,null,null,null,null,null,null,"Bénévoles du Jeudi Soir 2016"]
[]
[null,"Panier 5.oo pour moins de  4 hrs de travail",null,null,null,"Date : ",null,null,null,10,null,null,null,null,null,null,null,11,null,null,null,null,null,null,null,12]
[null,null,null,null,null,null,null,null,null,"Octobre",null,null,null,null,null,null,null,"Novembre",null,null,null,null,null,null,null,"Décembre"]
["No","Nom","Prénom","Téléphone","Celullaire","Courriel","Assignation","Présence","Paniers",null,0,null,null,null,null,null,null,"oui",null,null,null,null,null,null,null,{"$f":"+Z6:Y3R6:AG31","v":{"$error":"#NAME?"}}]
[null,null,null,null,null,null,null,null,null,null,null,null,null,null,null,null,null,null,null,null,null,null,null,null,null,null,null,null,null,null,null,null,5]
[]
[]
[]
[]
[]
[]
[]
[]
[]
[]
[]
[]
[]
[]
[]
[]
[]
[]
[]
[]
[]
[]
[null,null,null,null,null,null,"Total",{"$f":"COUNTIF(H7:H27,\"oui\")","v":0},null,{"$f":"COUNTIF(J7:J27,\"oui\")","v":0},{"$f":"COUNTIF(K7:K27,\"oui\")","v":0},0,0,0,0,0,0,0,0,0,0,0,0,0,0,0,0,0,0,0,0,0,0,0,0]
[null,null,null,null,null,null,null,null,null,"06/10/2016",null,"13/10/2016",null,"20/10/2016",null,"27/10/2016",null,"03/11/2016",null,"10/11/2016",null,"17/11/2016",null,"24/11/2016",null,"01/12/2016",null,"08/12/2016",null,"15/12/2016",null,"22/12/2016",null,"28/12/2016"]
[null,null,null,null,null,null,"Total",null,0]

{"sheet":"Archives 2016","index":7,"n_rows":31,"n_cols":52,"rows_kept":31,"cut":false,"hidden":false,"merged":[[30,46,30,47],[30,48,30,49],[30,50,30,51],[4,26,4,33],[4,34,4,41],[4,42,4,51],[30,26,30,27],[30,28,30,29],[30,30,30,31],[30,32,30,33],[30,34,30,35],[30,36,30,37],[1,34,1,45],[2,34,2,41],[4,16,4,25],[3,16,3,25],[30,24,30,25],[1,8,1,19],[30,16,30,17],[30,18,30,19],[30,20,30,21],[30,22,30,23],[30,38,30,39],[30,40,30,41],[30,42,30,43],[30,44,30,45],[0,0,0,1],[0,2,0,3],[30,12,30,13],[30,14,30,15],[2,8,2,15],[30,0,30,1],[30,2,30,3],[3,0,3,7],[4,0,4,7],[30,4,30,5],[30,6,30,7],[3,8,3,15],[4,8,4,15],[30,8,30,9],[30,10,30,11]]}
[]
[null,null,null,null,null,null,null,null,"Bénévoles du Jeudi après midi 2016",null,null,null,null,null,null,null,null,null,null,null,null,null,null,null,null,null,null,null,null,null,null,null,null,null,"Bénévoles du Jeudi Soir 2016"]
[]
[10,null,null,null,null,null,null,null,11,null,null,null,null,null,null,null,12,null,null,null,null,null,null,null,null,null,10,null,null,null,null,null,null,null,11,null,null,null,null,null,null,null,12]
["Octobre",null,null,null,null,null,null,null,"Novembre",null,null,null,null,null,null,null,"Décembre",null,null,null,null,null,null,null,null,null,"Octobre",null,null,null,null,null,null,null,"Novembre",null,null,null,null,null,null,null,"Décembre"]
[{"$f":"' BénéactifesJeudiApm'!H6","v":0},{"$f":"' BénéactifesJeudiApm'!I6","v":0},null,null,null,null,null,null,"oui",null,null,null,null,null,null,null,{"$f":"+Q6:Y3R6:X31","v":{"$error":"#NAME?"}},null,null,null,null,null,null,null,null,null,{"$f":"' Bénéactifes Jeudi soir'!H7","v":0},{"$f":"' Bénéactifes Jeudi soir'!I7","v":0},null,null,null,null,null,null,"oui",null,null,null,null,null,null,null,{"$f":"+AQ6:Y3R6:AX31","v":{"$error":"#NAME?"}}]
[{"$f":"' BénéactifesJeudiApm'!H7","v":0},{"$f":"' BénéactifesJeudiApm'!I7","v":0},null,null,null,null,null,null,null,null,null,null,null,null,null,null,null,null,null,null,null,null,null,null,null,null,{"$f":"' Bénéactifes Jeudi soir'!H8","v":0},{"$f":"' Bénéactifes Jeudi soir'!I8","v":0},null,null,null,null,null,null,null,null,null,null,null,null,null,null,null,null,null,null,null,null,null,5]
[{"$f":"' BénéactifesJeudiApm'!H8","v":0},{"$f":"' BénéactifesJeudiApm'!I8","v":0},null,null,null,null,null,null,null,null,null,null,null,null,null,null,null,null,null,null,null,null,null,null,null,null,{"$f":"' Bénéactifes Jeudi soir'!H9","v":0},{"$f":"' Bénéactifes Jeudi soir'!I9","v":0}]
[{"$f":"' BénéactifesJeudiApm'!H9","v":0},{"$f":"' BénéactifesJeudiApm'!I9","v":0},null,null,null,null,null,null,null,null,null,null,null,null,null,null,null,null,null,null,null,null,null,null,null,null,{"$f":"' Bénéactifes Jeudi soir'!H10","v":0},{"$f":"' Bénéactifes Jeudi soir'!I10","v":0}]
[{"$f":"' BénéactifesJeudiApm'!H10","v":0},{"$f":"' BénéactifesJeudiApm'!I10","v":0},null,null,null,null,null,null,null,null,null,null,null,null,null,null,null,null,null,null,null,null,null,null,null,null,{"$f":"' Bénéactifes Jeudi soir'!H11","v":0},{"$f":"' Bénéactifes Jeudi soir'!I11","v":0}]
[{"$f":"' BénéactifesJeudiApm'!H11","v":0},{"$f":"' BénéactifesJeudiApm'!I11","v":0},null,null,null,null,null,null,null,null,null,null,null,null,null,null,null,null,null,null,null,null,null,null,null,null,{"$f":"' Bénéactifes Jeudi soir'!H12","v":0},{"$f":"' Bénéactifes Jeudi soir'!I12","v":0}]
[{"$f":"' BénéactifesJeudiApm'!H12","v":0},{"$f":"' BénéactifesJeudiApm'!I12","v":0},null,null,null,null,null,null,null,null,null,null,null,null,null,null,null,null,null,null,null,null,null,null,null,null,{"$f":"' Bénéactifes Jeudi soir'!H13","v":0},{"$f":"' Bénéactifes Jeudi soir'!I13","v":0}]
[{"$f":"' BénéactifesJeudiApm'!H13","v":0},{"$f":"' BénéactifesJeudiApm'!I13","v":0},null,null,null,null,null,null,null,null,null,null,null,null,null,null,null,null,null,null,null,null,null,null,null,null,{"$f":"' Bénéactifes Jeudi soir'!H14","v":0},{"$f":"' Bénéactifes Jeudi soir'!I14","v":0}]
[{"$f":"' BénéactifesJeudiApm'!H14","v":0},{"$f":"' BénéactifesJeudiApm'!I14","v":0},null,null,null,null,null,null,null,null,null,null,null,null,null,null,null,null,null,null,null,null,null,null,null,null,{"$f":"' Bénéactifes Jeudi soir'!H15","v":0},{"$f":"' Bénéactifes Jeudi soir'!I15","v":0}]
[{"$f":"' BénéactifesJeudiApm'!H15","v":0},{"$f":"' BénéactifesJeudiApm'!I15","v":0},null,null,null,null,null,null,null,null,null,null,null,null,null,null,null,null,null,null,null,null,null,null,null,null,{"$f":"' Bénéactifes Jeudi soir'!H16","v":0},{"$f":"' Bénéactifes Jeudi soir'!I16","v":0}]
[{"$f":"' BénéactifesJeudiApm'!H16","v":0},{"$f":"' BénéactifesJeudiApm'!I16","v":0},null,null,null,null,null,null,null,null,null,null,null,null,null,null,null,null,null,null,null,null,null,null,null,null,{"$f":"' Bénéactifes Jeudi soir'!H17","v":0},{"$f":"' Bénéactifes Jeudi soir'!I17","v":0}]
[{"$f":"' BénéactifesJeudiApm'!H17","v":0},{"$f":"' BénéactifesJeudiApm'!I17","v":0},null,null,null,null,null,null,null,null,null,null,null,null,null,null,null,null,null,null,null,null,null,null,null,null,{"$f":"' Bénéactifes Jeudi soir'!H18","v":0},{"$f":"' Bénéactifes Jeudi soir'!I18","v":0}]
[{"$f":"' BénéactifesJeudiApm'!H18","v":0},{"$f":"' BénéactifesJeudiApm'!I18","v":0},null,null,null,null,null,null,null,null,null,null,null,null,null,null,null,null,null,null,null,null,null,null,null,null,{"$f":"' Bénéactifes Jeudi soir'!H19","v":0},{"$f":"' Bénéactifes Jeudi soir'!I19","v":0}]
[{"$f":"' BénéactifesJeudiApm'!H19","v":0},{"$f":"' BénéactifesJeudiApm'!I19","v":0},null,null,null,null,null,null,null,null,null,null,null,null,null,null,null,null,null,null,null,null,null,null,null,null,{"$f":"' Bénéactifes Jeudi soir'!H20","v":0},{"$f":"' Bénéactifes Jeudi soir'!I20","v":0}]
[{"$f":"' BénéactifesJeudiApm'!H20","v":0},{"$f":"' BénéactifesJeudiApm'!I20","v":0},null,null,null,null,null,null,null,null,null,null,null,null,null,null,null,null,null,null,null,null,null,null,null,null,{"$f":"' Bénéactifes Jeudi soir'!H21","v":0},{"$f":"' Bénéactifes Jeudi soir'!I21","v":0}]
[{"$f":"' BénéactifesJeudiApm'!H21","v":0},{"$f":"' BénéactifesJeudiApm'!I21","v":0},null,null,null,null,null,null,null,null,null,null,null,null,null,null,null,null,null,null,null,null,null,null,null,null,{"$f":"' Bénéactifes Jeudi soir'!H22","v":0},{"$f":"' Bénéactifes Jeudi soir'!I22","v":0}]
[{"$f":"' BénéactifesJeudiApm'!H22","v":0},{"$f":"' BénéactifesJeudiApm'!I22","v":0},null,null,null,null,null,null,null,null,null,null,null,null,null,null,null,null,null,null,null,null,null,null,null,null,{"$f":"' Bénéactifes Jeudi soir'!H23","v":0},{"$f":"' Bénéactifes Jeudi soir'!I23","v":0}]
[{"$f":"' BénéactifesJeudiApm'!H23","v":0},{"$f":"' BénéactifesJeudiApm'!I23","v":0},null,null,null,null,null,null,null,null,null,null,null,null,null,null,null,null,null,null,null,null,null,null,null,null,{"$f":"' Bénéactifes Jeudi soir'!H24","v":0},{"$f":"' Bénéactifes Jeudi soir'!I24","v":0}]
[{"$f":"' BénéactifesJeudiApm'!H24","v":0},{"$f":"' BénéactifesJeudiApm'!I24","v":0},null,null,null,null,null,null,null,null,null,null,null,null,null,null,null,null,null,null,null,null,null,null,null,null,{"$f":"' Bénéactifes Jeudi soir'!H25","v":0},{"$f":"' Bénéactifes Jeudi soir'!I25","v":0}]
[{"$f":"' BénéactifesJeudiApm'!H25","v":0},{"$f":"' BénéactifesJeudiApm'!I25","v":0},null,null,null,null,null,null,null,null,null,null,null,null,null,null,null,null,null,null,null,null,null,null,null,null,{"$f":"' Bénéactifes Jeudi soir'!H26","v":0},{"$f":"' Bénéactifes Jeudi soir'!I26","v":0}]
[{"$f":"' BénéactifesJeudiApm'!H26","v":0},{"$f":"' BénéactifesJeudiApm'!I26","v":0},null,null,null,null,null,null,null,null,null,null,null,null,null,null,null,null,null,null,null,null,null,null,null,null,{"$f":"' Bénéactifes Jeudi soir'!H27","v":0},{"$f":"' Bénéactifes Jeudi soir'!I27","v":0}]
[{"$f":"' BénéactifesJeudiApm'!H27","v":0},{"$f":"' BénéactifesJeudiApm'!I27","v":0},null,null,null,null,null,null,null,null,null,null,null,null,null,null,null,null,null,null,null,null,null,null,null,null,{"$f":"' Bénéactifes Jeudi soir'!H28","v":0},{"$f":"' Bénéactifes Jeudi soir'!I28","v":0}]
[null,{"$f":"' BénéactifesJeudiApm'!I28","v":0},null,null,null,null,null,null,null,null,null,null,null,null,null,null,null,null,null,null,null,null,null,null,null,null,{"$f":"' Bénéactifes Jeudi soir'!H29","v":0},{"$f":"' Bénéactifes Jeudi soir'!I29","v":0}]
[]
[{"$f":"COUNTIF(A6:A27,\"oui\")","v":0},{"$f":"SUM(B6:B28)","v":0},{"$f":"COUNTIF(C7:C27,\"oui\")","v":0},0,0,0,0,0,0,0,0,0,0,0,0,0,0,0,0,0,0,0,0,0,0,0,{"$f":"COUNTIF(AA6:AA27,\"oui\")","v":0},{"$f":"SUM(AB6:AB28)","v":0},{"$f":"COUNTIF(AC7:AC27,\"oui\")","v":0},0,0,0,0,0,0,0,0,0,0,0,0,0,0,0,0,0,0,0,0,0,0,0]
[{"$f":" DATE(' BénéactifesJeudiApm'!G4,' BénéactifesJeudiApm'!H4,' BénéactifesJeudiApm'!I4)","v":{"$error":"#NUM!"}},null,null,null,null,null,null,null,null,null,null,null,null,null,null,null,null,null,null,null,null,null,null,null,null,null,{"$f":" DATE(' Bénéactifes Jeudi soir'!G5,' Bénéactifes Jeudi soir'!H5,' Bénéactifes Jeudi soir'!I5)","v":{"$error":"#NUM!"}},null,"13/10/2016",null,"20/10/2016",null,"27/10/2016",null,"03/11/2016",null,"10/11/2016",null,"17/11/2016",null,"24/11/2016",null,"01/12/2016",null,"08/12/2016",null,"15/12/2016",null,"22/12/2016",null,"28/12/2016"]

{"sheet":"Archives 2017","index":8,"n_rows":0,"n_cols":0,"rows_kept":0,"cut":false,"hidden":false,"merged":[]}

{"sheet":"Feuil5","index":9,"n_rows":0,"n_cols":0,"rows_kept":0,"cut":false,"hidden":false,"merged":[]}